[Event "Titled Tuesday Blitz May 16 Early 2023"]
[White "Dushyant Sharma"]
[Black "Bocharov, Dmitry"]
[WhiteFideId "25065130"]
[BlackFideId "4138716"]
[WhiteElo "2198"]
[BlackElo "2469"]
[Result "0-1"]
[Round "02"]
[TimeControl "180+2"]
[Date "2023.05.16"]
[WhiteClock "0:00:07"]
[BlackClock "0:00:40"]

1. e4 {[%clk 0:02:59]}  c5 {[%clk 0:02:59]} 2. Nf3 {[%clk 0:03:00]}  d6 {[%clk 0:02:58]} 3. d4 {[%clk 0:03:00]}  cxd4 {[%clk 0:02:59]} 4. Nxd4 {[%clk 0:03:01]}  Nf6 {[%clk 0:03:00]} 5. Nc3 {[%clk 0:03:02]}  a6 {[%clk 0:03:00]} 6. f4 {[%clk 0:03:02]}  Qc7 {[%clk 0:03:00]} 7. a4 {[%clk 0:03:01]}  g6 {[%clk 0:02:57]} 8. Nf3 {[%clk 0:03:01]}  Bg7 {[%clk 0:02:57]} 9. Bd3 {[%clk 0:03:02]}  O-O {[%clk 0:02:57]} 10. O-O {[%clk 0:03:02]}  Nc6 {[%clk 0:02:51]} 11. Qe1 {[%clk 0:03:01]}  Nb4 {[%clk 0:02:40]} 12. Bd2 {[%clk 0:02:53]}  e6 {[%clk 0:02:32]} 13. Kh1 {[%clk 0:02:51]}  b6 {[%clk 0:02:29]} 14. Qh4 {[%clk 0:02:48]}  Nxd3 {[%clk 0:02:29]} 15. cxd3 {[%clk 0:02:49]}  Bb7 {[%clk 0:02:29]} 16. Rac1 {[%clk 0:02:40]}  Qd7 {[%clk 0:02:29]} 17. Be3 {[%clk 0:02:41]}  b5 {[%clk 0:02:27]} 18. axb5 {[%clk 0:01:57]}  axb5 {[%clk 0:02:28]} 19. e5 {[%clk 0:01:58]}  Nd5 {[%clk 0:02:21]} 20. Nxd5 {[%clk 0:01:54]}  Bxd5 {[%clk 0:02:21]} 21. exd6 {[%clk 0:01:30]}  Rfc8 {[%clk 0:02:11]} 22. Ng5 {[%clk 0:00:56]}  h5 {[%clk 0:01:57]} 23. Ne4 {[%clk 0:00:47]}  Bxe4 {[%clk 0:01:56]} 24. dxe4 {[%clk 0:00:48]}  Qxd6 {[%clk 0:01:53]} 25. Rcd1 {[%clk 0:00:41]}  Qb4 {[%clk 0:01:50]} 26. e5 {[%clk 0:00:31]}  Qe4 {[%clk 0:01:45]} 27. Rfe1 {[%clk 0:00:23]}  Rc2 {[%clk 0:01:44]} 28. Bf2 {[%clk 0:00:20]}  Qc6 {[%clk 0:01:41]} 29. Rd6 {[%clk 0:00:18]}  Qc4 {[%clk 0:01:29]} 30. Rd4 {[%clk 0:00:13]}  Qb3 {[%clk 0:01:24]} 31. f5 {[%clk 0:00:12]}  exf5 {[%clk 0:01:20]} 32. Rd7 {[%clk 0:00:11]}  Re8 {[%clk 0:01:13]} 33. Rd8 {[%clk 0:00:08]}  Rxd8 {[%clk 0:01:12]} 34. Qxd8+ {[%clk 0:00:08]}  Kh7 {[%clk 0:01:12]} 35. e6 {[%clk 0:00:09]}  fxe6 {[%clk 0:00:55]} 36. Bg3 {[%clk 0:00:09]}  Rxb2 {[%clk 0:00:48]} 37. Qd7 {[%clk 0:00:09]}  Rb1 {[%clk 0:00:47]} 38. h3 {[%clk 0:00:08]}  Rxe1+ {[%clk 0:00:46]} 39. Bxe1 {[%clk 0:00:09]}  b4 {[%clk 0:00:42]} 40. Kh2 {[%clk 0:00:09]}  Qd5 {[%clk 0:00:41]} 41. Qb7 {[%clk 0:00:07]}  Qxb7 {[%clk 0:00:40]} 0-1


[Site "https://www.chess.com"]

[Event "Titled Tuesday Blitz May 16 Early 2023"]
[White "Csonka, Balazs"]
[Black "Tokman, Ariel"]
[WhiteFideId "742910"]
[BlackFideId "117420"]
[WhiteElo "2404"]
[BlackElo "2263"]
[Result "1-0"]
[Round "02"]
[TimeControl "180+2"]
[Date "2023.05.16"]
[WhiteClock "0:00:06"]
[BlackClock "0:00:03"]

1. e4 {[%clk 0:03:00]}  c5 {[%clk 0:02:44]} 2. Nc3 {[%clk 0:02:57]}  e6 {[%clk 0:02:41]} 3. Nf3 {[%clk 0:02:56]}  a6 {[%clk 0:02:40]} 4. g3 {[%clk 0:02:54]}  Nc6 {[%clk 0:02:38]} 5. d4 {[%clk 0:02:49]}  cxd4 {[%clk 0:02:36]} 6. Nxd4 {[%clk 0:02:50]}  Nxd4 {[%clk 0:02:36]} 7. Qxd4 {[%clk 0:02:49]}  Ne7 {[%clk 0:02:37]} 8. Be3 {[%clk 0:02:46]}  Nc6 {[%clk 0:02:36]} 9. Qb6 {[%clk 0:02:45]}  Qxb6 {[%clk 0:01:49]} 10. Bxb6 {[%clk 0:02:46]}  Be7 {[%clk 0:01:48]} 11. O-O-O {[%clk 0:02:44]}  O-O {[%clk 0:01:47]} 12. f4 {[%clk 0:02:26]}  d6 {[%clk 0:01:45]} 13. Bc7 {[%clk 0:02:25]}  Rd8 {[%clk 0:01:13]} 14. Bxd8 {[%clk 0:02:21]}  Nxd8 {[%clk 0:01:14]} 15. Bg2 {[%clk 0:01:50]}  Nc6 {[%clk 0:01:14]} 16. Na4 {[%clk 0:01:39]}  e5 {[%clk 0:00:58]} 17. Nb6 {[%clk 0:01:29]}  Rb8 {[%clk 0:00:58]} 18. f5 {[%clk 0:01:30]}  Kf8 {[%clk 0:00:53]} 19. c3 {[%clk 0:01:17]}  Ke8 {[%clk 0:00:47]} 20. Kc2 {[%clk 0:01:14]}  Bd7 {[%clk 0:00:46]} 21. Rd3 {[%clk 0:01:02]}  Rd8 {[%clk 0:00:45]} 22. Rhd1 {[%clk 0:01:00]}  Bc8 {[%clk 0:00:43]} 23. h4 {[%clk 0:00:57]}  Na5 {[%clk 0:00:22]} 24. b4 {[%clk 0:00:54]}  Nc6 {[%clk 0:00:22]} 25. a4 {[%clk 0:00:50]}  Bf8 {[%clk 0:00:13]} 26. Kb3 {[%clk 0:00:47]}  g6 {[%clk 0:00:12]} 27. g4 {[%clk 0:00:37]}  Be7 {[%clk 0:00:11]} 28. b5 {[%clk 0:00:35]}  axb5 {[%clk 0:00:11]} 29. axb5 {[%clk 0:00:36]}  Nb8 {[%clk 0:00:09]} 30. g5 {[%clk 0:00:21]}  Nd7 {[%clk 0:00:06]} 31. Nxd7 {[%clk 0:00:20]}  Bxd7 {[%clk 0:00:05]} 32. f6 {[%clk 0:00:21]}  Bf8 {[%clk 0:00:05]} 33. c4 {[%clk 0:00:21]}  Ra8 {[%clk 0:00:04]} 34. R3d2 {[%clk 0:00:22]}  b6 {[%clk 0:00:03]} 35. Ra2 {[%clk 0:00:20]}  Rxa2 {[%clk 0:00:03]} 36. Kxa2 {[%clk 0:00:20]}  Kd8 {[%clk 0:00:04]} 37. Kb3 {[%clk 0:00:21]}  Kc7 {[%clk 0:00:04]} 38. Rh1 {[%clk 0:00:21]}  Bg4 {[%clk 0:00:04]} 39. Kc3 {[%clk 0:00:20]}  Kb7 {[%clk 0:00:04]} 40. Kd3 {[%clk 0:00:19]}  Kb8 {[%clk 0:00:04]} 41. Bh3 {[%clk 0:00:19]}  Bh5 {[%clk 0:00:04]} 42. Bf1 {[%clk 0:00:14]}  Kc7 {[%clk 0:00:03]} 43. Rh2 {[%clk 0:00:10]}  Kb7 {[%clk 0:00:04]} 44. Ra2 {[%clk 0:00:10]}  Kb8 {[%clk 0:00:04]} 45. Bh3 {[%clk 0:00:07]}  Kb7 {[%clk 0:00:04]} 46. Bd7 {[%clk 0:00:07]}  d5 {[%clk 0:00:05]} 47. Bc6+ {[%clk 0:00:06]}  Kb8 {[%clk 0:00:03]} 48. Ra8+ {[%clk 0:00:06]} 1-0


[Site "https://www.chess.com"]

[Event "Titled Tuesday Blitz May 16 Early 2023"]
[White "Yanchenko, Roman"]
[Black "Yurasova, Daria"]
[WhiteFideId "4137329"]
[BlackFideId "34146919"]
[WhiteElo "2491"]
[BlackElo "2109"]
[Result "1-0"]
[Round "02"]
[TimeControl "180+2"]
[Date "2023.05.16"]
[WhiteClock "0:02:14"]
[BlackClock "0:01:41"]

1. d4 {[%clk 0:03:00]}  d5 {[%clk 0:02:59]} 2. c4 {[%clk 0:03:01]}  dxc4 {[%clk 0:03:00]} 3. Nc3 {[%clk 0:03:01]}  Nf6 {[%clk 0:03:00]} 4. Nf3 {[%clk 0:03:02]}  e6 {[%clk 0:02:58]} 5. Bf4 {[%clk 0:03:02]}  Bd6 {[%clk 0:02:56]} 6. Bg3 {[%clk 0:03:01]}  a6 {[%clk 0:02:53]} 7. a4 {[%clk 0:03:01]}  Bxg3 {[%clk 0:02:52]} 8. hxg3 {[%clk 0:03:01]}  Nd5 {[%clk 0:02:52]} 9. e3 {[%clk 0:03:02]}  c5 {[%clk 0:02:49]} 10. Bxc4 {[%clk 0:03:01]}  Nxc3 {[%clk 0:02:47]} 11. bxc3 {[%clk 0:03:01]}  cxd4 {[%clk 0:02:48]} 12. cxd4 {[%clk 0:03:01]}  b6 {[%clk 0:02:46]} 13. Ne5 {[%clk 0:02:39]}  Bb7 {[%clk 0:02:29]} 14. Bxe6 {[%clk 0:02:38]}  fxe6 {[%clk 0:02:11]} 15. Qh5+ {[%clk 0:02:38]}  Ke7 {[%clk 0:02:05]} 16. Qg5+ {[%clk 0:02:38]}  Ke8 {[%clk 0:02:00]} 17. Qxg7 {[%clk 0:02:38]}  Rf8 {[%clk 0:02:00]} 18. Qxb7 {[%clk 0:02:37]}  Qf6 {[%clk 0:01:41]} 19. f4 {[%clk 0:02:14]} 1-0


[Site "https://www.chess.com"]

[Event "Titled Tuesday Blitz May 16 Early 2023"]
[White "Aarav Dengla"]
[Black "Di Benedetto, Edoardo"]
[WhiteFideId "45059756"]
[BlackFideId "875740"]
[WhiteElo "2288"]
[BlackElo "2296"]
[Result "0-1"]
[Round "02"]
[TimeControl "180+2"]
[Date "2023.05.16"]
[WhiteClock "0:00:09"]
[BlackClock "0:00:17"]

1. e4 {[%clk 0:03:00]}  e6 {[%clk 0:03:00]} 2. d4 {[%clk 0:02:59]}  d5 {[%clk 0:03:00]} 3. exd5 {[%clk 0:03:00]}  exd5 {[%clk 0:03:00]} 4. Nf3 {[%clk 0:03:01]}  Bd6 {[%clk 0:03:00]} 5. c4 {[%clk 0:03:01]}  Nf6 {[%clk 0:02:59]} 6. Nc3 {[%clk 0:03:00]}  O-O {[%clk 0:02:57]} 7. cxd5 {[%clk 0:02:55]}  Nbd7 {[%clk 0:02:56]} 8. Be2 {[%clk 0:02:43]}  h6 {[%clk 0:02:56]} 9. O-O {[%clk 0:02:30]}  Nb6 {[%clk 0:02:55]} 10. Ne5 {[%clk 0:02:29]}  Nbxd5 {[%clk 0:02:50]} 11. Nxd5 {[%clk 0:02:28]}  Nxd5 {[%clk 0:02:50]} 12. Bf3 {[%clk 0:02:29]}  Be6 {[%clk 0:02:40]} 13. Nc4 {[%clk 0:02:18]}  c6 {[%clk 0:02:32]} 14. Nxd6 {[%clk 0:02:17]}  Qxd6 {[%clk 0:02:33]} 15. Qb3 {[%clk 0:02:12]}  Nb6 {[%clk 0:02:29]} 16. Qc3 {[%clk 0:02:10]}  Bd5 {[%clk 0:02:27]} 17. Bxd5 {[%clk 0:02:06]}  Nxd5 {[%clk 0:02:24]} 18. Qb3 {[%clk 0:02:06]}  Qd7 {[%clk 0:02:24]} 19. Be3 {[%clk 0:02:04]}  Rfe8 {[%clk 0:02:24]} 20. Rfe1 {[%clk 0:02:03]}  Re6 {[%clk 0:02:23]} 21. Bd2 {[%clk 0:02:01]}  Rae8 {[%clk 0:02:23]} 22. Rxe6 {[%clk 0:01:57]}  Rxe6 {[%clk 0:02:20]} 23. Re1 {[%clk 0:01:57]}  Rxe1+ {[%clk 0:02:20]} 24. Bxe1 {[%clk 0:01:58]}  Nf4 {[%clk 0:02:19]} 25. Bc3 {[%clk 0:01:46]}  Qe7 {[%clk 0:01:21]} 26. Qd1 {[%clk 0:01:35]}  Qg5 {[%clk 0:01:16]} 27. g3 {[%clk 0:01:31]}  Nd5 {[%clk 0:01:13]} 28. h4 {[%clk 0:01:28]}  Qe7 {[%clk 0:01:13]} 29. Qe1 {[%clk 0:01:27]}  Qxe1+ {[%clk 0:01:10]} 30. Bxe1 {[%clk 0:01:28]}  f5 {[%clk 0:01:09]} 31. Kf1 {[%clk 0:01:27]}  Kf7 {[%clk 0:01:10]} 32. Ke2 {[%clk 0:01:28]}  Ke6 {[%clk 0:01:10]} 33. Kd3 {[%clk 0:01:28]}  Nf6 {[%clk 0:01:10]} 34. Bd2 {[%clk 0:01:26]}  Kd5 {[%clk 0:01:09]} 35. Bf4 {[%clk 0:01:18]}  Nd7 {[%clk 0:00:55]} 36. f3 {[%clk 0:01:05]}  Nf8 {[%clk 0:00:51]} 37. Be5 {[%clk 0:01:04]}  Ne6 {[%clk 0:00:52]} 38. b4 {[%clk 0:01:00]}  g6 {[%clk 0:00:46]} 39. Bf6 {[%clk 0:00:46]}  h5 {[%clk 0:00:41]} 40. Be5 {[%clk 0:00:30]}  g5 {[%clk 0:00:40]} 41. hxg5 {[%clk 0:00:29]}  Nxg5 {[%clk 0:00:40]} 42. Ke3 {[%clk 0:00:30]}  Ne6 {[%clk 0:00:40]} 43. Bf6 {[%clk 0:00:29]}  Kc4 {[%clk 0:00:38]} 44. Be7 {[%clk 0:00:25]}  b6 {[%clk 0:00:24]} 45. a4 {[%clk 0:00:11]}  a6 {[%clk 0:00:20]} 46. a5 {[%clk 0:00:11]}  b5 {[%clk 0:00:20]} 47. Bd6 {[%clk 0:00:10]}  Nxd4 {[%clk 0:00:19]} 48. Kf4 {[%clk 0:00:11]}  Kd5 {[%clk 0:00:20]} 49. Be7 {[%clk 0:00:11]}  Ke6 {[%clk 0:00:19]} 50. Bc5 {[%clk 0:00:11]}  Nb3 {[%clk 0:00:19]} 51. Bf8 {[%clk 0:00:10]}  c5 {[%clk 0:00:18]} 52. bxc5 {[%clk 0:00:10]}  Nd4 {[%clk 0:00:18]} 53. Kg5 {[%clk 0:00:09]}  Nxf3+ {[%clk 0:00:18]} 54. Kxh5 {[%clk 0:00:09]}  Nd4 {[%clk 0:00:19]} 55. Kg5 {[%clk 0:00:08]}  Nc6 {[%clk 0:00:19]} 56. Kf4 {[%clk 0:00:08]}  Nxa5 {[%clk 0:00:20]} 57. Bg7 {[%clk 0:00:08]}  Nc6 {[%clk 0:00:19]} 58. Bc3 {[%clk 0:00:09]}  a5 {[%clk 0:00:20]} 59. Bb2 {[%clk 0:00:09]}  a4 {[%clk 0:00:20]} 60. Ke3 {[%clk 0:00:09]}  Kd5 {[%clk 0:00:20]} 61. Ba3 {[%clk 0:00:09]}  b4 {[%clk 0:00:20]} 62. Bc1 {[%clk 0:00:10]}  Kc4 {[%clk 0:00:19]} 63. Kf4 {[%clk 0:00:11]}  a3 {[%clk 0:00:20]} 64. Kxf5 {[%clk 0:00:11]}  Kc3 {[%clk 0:00:18]} 65. g4 {[%clk 0:00:11]}  Kc2 {[%clk 0:00:19]} 66. Bh6 {[%clk 0:00:08]}  b3 {[%clk 0:00:18]} 67. g5 {[%clk 0:00:08]}  b2 {[%clk 0:00:18]} 68. g6 {[%clk 0:00:09]}  b1=Q {[%clk 0:00:19]} 69. g7 {[%clk 0:00:10]}  Kb3+ {[%clk 0:00:18]} 70. Ke6 {[%clk 0:00:09]}  Qg6+ {[%clk 0:00:18]} 71. Kd7 {[%clk 0:00:10]}  a2 {[%clk 0:00:17]} 72. g8=Q+ {[%clk 0:00:09]}  Qxg8 {[%clk 0:00:17]} 73. Kxc6 {[%clk 0:00:10]}  a1=Q {[%clk 0:00:17]} 74. Kb6 {[%clk 0:00:11]}  Qaa8 {[%clk 0:00:17]} 75. c6 {[%clk 0:00:12]}  Qg1+ {[%clk 0:00:16]} 76. Kc7 {[%clk 0:00:11]}  Qga7+ {[%clk 0:00:16]} 77. Kd6 {[%clk 0:00:12]}  Qd8+ {[%clk 0:00:16]} 78. Ke6 {[%clk 0:00:12]}  Qae7+ {[%clk 0:00:17]} 79. Kf5 {[%clk 0:00:12]}  Qd5+ {[%clk 0:00:17]} 80. Kg4 {[%clk 0:00:13]}  Qee4+ {[%clk 0:00:17]} 81. Kg3 {[%clk 0:00:12]}  Qdd3+ {[%clk 0:00:17]} 82. Be3 {[%clk 0:00:09]}  Qdxe3+ {[%clk 0:00:17]} 0-1


[Site "https://www.chess.com"]

[Event "Titled Tuesday Blitz May 16 Early 2023"]
[White "Sowul, Bartosz"]
[Black "Kushko, Dmitriy"]
[WhiteFideId "1137590"]
[BlackFideId "14162261"]
[WhiteElo "2188"]
[BlackElo "2230"]
[Result "0-1"]
[Round "02"]
[TimeControl "180+2"]
[Date "2023.05.16"]
[WhiteClock "0:00:21"]
[BlackClock "0:00:04"]

1. e4 {[%clk 0:02:57]}  g6 {[%clk 0:03:00]} 2. d4 {[%clk 0:02:56]}  Bg7 {[%clk 0:03:00]} 3. Nc3 {[%clk 0:02:57]}  d6 {[%clk 0:03:00]} 4. Be3 {[%clk 0:02:57]}  a6 {[%clk 0:02:59]} 5. Nf3 {[%clk 0:02:57]}  b5 {[%clk 0:02:58]} 6. Bd3 {[%clk 0:02:57]}  Bb7 {[%clk 0:02:58]} 7. h4 {[%clk 0:02:57]}  Nf6 {[%clk 0:02:55]} 8. e5 {[%clk 0:02:44]}  Ng4 {[%clk 0:02:42]} 9. Bf4 {[%clk 0:02:33]}  c5 {[%clk 0:02:11]} 10. e6 {[%clk 0:02:11]}  f5 {[%clk 0:01:37]} 11. Ng5 {[%clk 0:01:55]}  O-O {[%clk 0:01:35]} 12. h5 {[%clk 0:01:43]}  Bxd4 {[%clk 0:01:26]} 13. f3 {[%clk 0:01:27]}  Nf2 {[%clk 0:01:22]} 14. Qe2 {[%clk 0:01:23]}  Nxh1 {[%clk 0:01:21]} 15. hxg6 {[%clk 0:01:13]}  hxg6 {[%clk 0:01:17]} 16. O-O-O {[%clk 0:00:34]}  Nf2 {[%clk 0:01:14]} 17. Rf1 {[%clk 0:00:34]}  Nxd3+ {[%clk 0:00:57]} 18. Qxd3 {[%clk 0:00:28]}  Kg7 {[%clk 0:00:44]} 19. Nf7 {[%clk 0:00:25]}  Rxf7 {[%clk 0:00:44]} 20. exf7 {[%clk 0:00:24]}  Nd7 {[%clk 0:00:38]} 21. g4 {[%clk 0:00:22]}  e5 {[%clk 0:00:28]} 22. Bd2 {[%clk 0:00:16]}  f4 {[%clk 0:00:25]} 23. Ne4 {[%clk 0:00:15]}  Bxe4 {[%clk 0:00:21]} 24. Qxe4 {[%clk 0:00:15]}  Nf6 {[%clk 0:00:20]} 25. Qe1 {[%clk 0:00:15]}  Kxf7 {[%clk 0:00:18]} 26. c3 {[%clk 0:00:15]}  Be3 {[%clk 0:00:17]} 27. Bxe3 {[%clk 0:00:16]}  fxe3 {[%clk 0:00:18]} 28. Qxe3 {[%clk 0:00:17]}  Nd5 {[%clk 0:00:16]} 29. Qe4 {[%clk 0:00:16]}  Nf4 {[%clk 0:00:15]} 30. Qb7+ {[%clk 0:00:16]}  Kf6 {[%clk 0:00:15]} 31. Rh1 {[%clk 0:00:16]}  Rb8 {[%clk 0:00:09]} 32. g5+ {[%clk 0:00:13]}  Ke6 {[%clk 0:00:03]} 33. Qg7 {[%clk 0:00:11]}  Qxg5 {[%clk 0:00:02]} 34. Kc2 {[%clk 0:00:07]}  Kd5 {[%clk 0:00:02]} 35. Qf7+ {[%clk 0:00:07]}  Kc6 {[%clk 0:00:03]} 36. Rh7 {[%clk 0:00:07]}  Qf5+ {[%clk 0:00:03]} 37. Qxf5 {[%clk 0:00:07]}  gxf5 {[%clk 0:00:04]} 38. Kd2 {[%clk 0:00:07]}  Nd5 {[%clk 0:00:03]} 39. Rf7 {[%clk 0:00:08]}  f4 {[%clk 0:00:04]} 40. Rg7 {[%clk 0:00:08]}  Nb6 {[%clk 0:00:04]} 41. Rg6 {[%clk 0:00:09]}  Rb7 {[%clk 0:00:04]} 42. b3 {[%clk 0:00:10]}  c4 {[%clk 0:00:04]} 43. Kc2 {[%clk 0:00:11]}  Re7 {[%clk 0:00:05]} 44. Rf6 {[%clk 0:00:12]}  Kd7 {[%clk 0:00:05]} 45. Rg6 {[%clk 0:00:12]}  Nd5 {[%clk 0:00:05]} 46. b4 {[%clk 0:00:13]}  Ne3+ {[%clk 0:00:06]} 47. Kd2 {[%clk 0:00:13]}  Rh7 {[%clk 0:00:06]} 48. Rg1 {[%clk 0:00:14]}  Rh2+ {[%clk 0:00:06]} 49. Kc1 {[%clk 0:00:15]}  Ke6 {[%clk 0:00:06]} 50. Kb1 {[%clk 0:00:16]}  d5 {[%clk 0:00:06]} 51. Ka1 {[%clk 0:00:17]}  d4 {[%clk 0:00:06]} 52. cxd4 {[%clk 0:00:17]}  exd4 {[%clk 0:00:06]} 53. a3 {[%clk 0:00:18]}  c3 {[%clk 0:00:06]} 54. a4 {[%clk 0:00:19]}  Kd5 {[%clk 0:00:06]} 55. Kb1 {[%clk 0:00:19]}  Kc4 {[%clk 0:00:06]} 56. axb5 {[%clk 0:00:20]}  axb5 {[%clk 0:00:07]} 57. Rg6 {[%clk 0:00:19]}  Kb3 {[%clk 0:00:06]} 58. Rg1 {[%clk 0:00:20]}  Ra2 {[%clk 0:00:05]} 59. Rc1 {[%clk 0:00:19]}  c2+ {[%clk 0:00:03]} 60. Rxc2 {[%clk 0:00:20]}  Rxc2 {[%clk 0:00:04]} 61. Ka1 {[%clk 0:00:21]}  Rc1# {[%clk 0:00:04]} 0-1


[Site "https://www.chess.com"]

[Event "Titled Tuesday Blitz May 16 Early 2023"]
[White "Deepan Chakkravarthy J."]
[Black "liwadas82"]
[WhiteFideId "5011132"]
[WhiteElo "2351"]
[BlackElo "2471"]
[Result "1-0"]
[Round "02"]
[TimeControl "180+2"]
[Date "2023.05.16"]
[WhiteClock "0:00:49"]
[BlackClock "0:00:00"]

1. Nf3 {[%clk 0:03:00]}  Nf6 {[%clk 0:02:59]} 2. g3 {[%clk 0:03:00]}  b5 {[%clk 0:02:58]} 3. Bg2 {[%clk 0:03:01]}  Bb7 {[%clk 0:02:58]} 4. O-O {[%clk 0:03:02]}  e6 {[%clk 0:02:58]} 5. a4 {[%clk 0:03:02]}  b4 {[%clk 0:02:57]} 6. c3 {[%clk 0:03:03]}  bxc3 {[%clk 0:02:56]} 7. dxc3 {[%clk 0:03:02]}  Be7 {[%clk 0:02:51]} 8. Nbd2 {[%clk 0:03:00]}  O-O {[%clk 0:02:50]} 9. Qc2 {[%clk 0:02:59]}  d5 {[%clk 0:02:46]} 10. b4 {[%clk 0:02:59]}  c5 {[%clk 0:02:42]} 11. b5 {[%clk 0:02:59]}  a6 {[%clk 0:02:39]} 12. c4 {[%clk 0:02:53]}  dxc4 {[%clk 0:02:26]} 13. Rb1 {[%clk 0:02:45]}  axb5 {[%clk 0:02:21]} 14. axb5 {[%clk 0:02:46]}  Nbd7 {[%clk 0:02:13]} 15. Nxc4 {[%clk 0:02:44]}  Be4 {[%clk 0:02:10]} 16. Qb2 {[%clk 0:02:43]}  Bxb1 {[%clk 0:02:09]} 17. Qxb1 {[%clk 0:02:44]}  Nb6 {[%clk 0:01:58]} 18. Nfe5 {[%clk 0:02:40]}  Nxc4 {[%clk 0:01:45]} 19. Nxc4 {[%clk 0:02:40]}  Ra4 {[%clk 0:01:31]} 20. Qc2 {[%clk 0:02:38]}  Rb4 {[%clk 0:01:26]} 21. Na3 {[%clk 0:02:11]}  c4 {[%clk 0:01:16]} 22. Bc6 {[%clk 0:02:03]}  Qb6 {[%clk 0:00:58]} 23. Be3 {[%clk 0:01:57]}  Bc5 {[%clk 0:00:57]} 24. Nxc4 {[%clk 0:01:53]}  Rxc4 {[%clk 0:00:41]} 25. Qxc4 {[%clk 0:01:54]}  Bxe3 {[%clk 0:00:41]} 26. fxe3 {[%clk 0:01:55]}  Qxe3+ {[%clk 0:00:42]} 27. Kh1 {[%clk 0:01:55]}  h5 {[%clk 0:00:36]} 28. Bf3 {[%clk 0:01:52]}  Rd8 {[%clk 0:00:20]} 29. Rb1 {[%clk 0:01:48]}  Nd5 {[%clk 0:00:14]} 30. Qd3 {[%clk 0:01:33]}  Qf2 {[%clk 0:00:14]} 31. b6 {[%clk 0:01:31]}  h4 {[%clk 0:00:13]} 32. b7 {[%clk 0:01:21]}  Rb8 {[%clk 0:00:12]} 33. Bxd5 {[%clk 0:01:13]}  exd5 {[%clk 0:00:13]} 34. gxh4 {[%clk 0:01:09]}  Qxh4 {[%clk 0:00:12]} 35. Qxd5 {[%clk 0:01:08]}  g6 {[%clk 0:00:10]} 36. Rc1 {[%clk 0:01:05]}  Kh7 {[%clk 0:00:04]} 37. Qxf7+ {[%clk 0:01:02]}  Kh6 {[%clk 0:00:04]} 38. Qf3 {[%clk 0:01:02]}  Re8 {[%clk 0:00:03]} 39. Rb1 {[%clk 0:00:59]}  Qd4 {[%clk 0:00:01]} 40. b8=Q {[%clk 0:00:54]}  Rxb8 {[%clk 0:00:01]} 41. Rxb8 {[%clk 0:00:54]}  Qd1+ {[%clk 0:00:02]} 42. Kg2 {[%clk 0:00:53]}  Qd4 {[%clk 0:00:00]} 43. Rb7 {[%clk 0:00:49]} 1-0


[Site "https://www.chess.com"]

[Event "Titled Tuesday Blitz May 16 Early 2023"]
[White "Czerw, Dawid"]
[Black "Lavrik, Dmitry"]
[WhiteFideId "1145746"]
[BlackFideId "24113190"]
[WhiteElo "2144"]
[BlackElo "2345"]
[Result "1-0"]
[Round "02"]
[TimeControl "180+2"]
[Date "2023.05.16"]
[WhiteClock "0:00:04"]
[BlackClock "0:00:00"]

1. e4 {[%clk 0:03:00]}  c5 {[%clk 0:02:59]} 2. Nf3 {[%clk 0:03:00]}  d6 {[%clk 0:03:00]} 3. d4 {[%clk 0:02:59]}  cxd4 {[%clk 0:03:01]} 4. Nxd4 {[%clk 0:02:59]}  Nf6 {[%clk 0:03:00]} 5. Nc3 {[%clk 0:02:58]}  Nc6 {[%clk 0:03:00]} 6. f3 {[%clk 0:02:47]}  e5 {[%clk 0:02:59]} 7. Nb3 {[%clk 0:02:45]}  Be7 {[%clk 0:02:59]} 8. Be3 {[%clk 0:02:44]}  O-O {[%clk 0:02:59]} 9. Qd2 {[%clk 0:02:44]}  a5 {[%clk 0:02:57]} 10. Bb5 {[%clk 0:02:37]}  Be6 {[%clk 0:02:39]} 11. O-O-O {[%clk 0:02:35]}  Qc7 {[%clk 0:02:02]} 12. a4 {[%clk 0:02:27]}  Nb4 {[%clk 0:02:00]} 13. Kb1 {[%clk 0:02:23]}  d5 {[%clk 0:01:47]} 14. exd5 {[%clk 0:02:17]}  Nfxd5 {[%clk 0:01:48]} 15. Nxd5 {[%clk 0:02:16]}  Bxd5 {[%clk 0:01:35]} 16. Qf2 {[%clk 0:02:03]}  Be6 {[%clk 0:01:08]} 17. g4 {[%clk 0:01:53]}  Rfc8 {[%clk 0:01:04]} 18. Rd2 {[%clk 0:01:47]}  Nxc2 {[%clk 0:00:47]} 19. Rxc2 {[%clk 0:01:43]}  Qxc2+ {[%clk 0:00:48]} 20. Qxc2 {[%clk 0:01:42]}  Rxc2 {[%clk 0:00:49]} 21. Kxc2 {[%clk 0:01:43]}  Rc8+ {[%clk 0:00:49]} 22. Nc5 {[%clk 0:01:11]}  Bxc5 {[%clk 0:00:48]} 23. Bxc5 {[%clk 0:01:08]}  Rxc5+ {[%clk 0:00:49]} 24. Kd3 {[%clk 0:01:07]}  Kf8 {[%clk 0:00:47]} 25. Rb1 {[%clk 0:01:04]}  Bb3 {[%clk 0:00:42]} 26. Re1 {[%clk 0:01:02]}  g5 {[%clk 0:00:30]} 27. Re2 {[%clk 0:00:56]}  Ke7 {[%clk 0:00:29]} 28. Ke4 {[%clk 0:00:51]}  f6 {[%clk 0:00:24]} 29. Rd2 {[%clk 0:00:49]}  Be6 {[%clk 0:00:20]} 30. h4 {[%clk 0:00:47]}  gxh4 {[%clk 0:00:17]} 31. Rh2 {[%clk 0:00:47]}  Bf7 {[%clk 0:00:18]} 32. Rxh4 {[%clk 0:00:46]}  Bg6+ {[%clk 0:00:18]} 33. Ke3 {[%clk 0:00:46]}  Rc2 {[%clk 0:00:16]} 34. Bd3 {[%clk 0:00:46]}  Rxb2 {[%clk 0:00:16]} 35. Bxg6 {[%clk 0:00:46]}  hxg6 {[%clk 0:00:16]} 36. Rh7+ {[%clk 0:00:46]}  Ke6 {[%clk 0:00:17]} 37. Rg7 {[%clk 0:00:45]}  g5 {[%clk 0:00:17]} 38. Rc7 {[%clk 0:00:44]}  b5 {[%clk 0:00:16]} 39. axb5 {[%clk 0:00:41]}  Rxb5 {[%clk 0:00:17]} 40. Rc6+ {[%clk 0:00:42]}  Kf7 {[%clk 0:00:18]} 41. Ra6 {[%clk 0:00:42]}  Kg6 {[%clk 0:00:18]} 42. Ke4 {[%clk 0:00:40]}  Rb4+ {[%clk 0:00:18]} 43. Ke3 {[%clk 0:00:36]}  Ra4 {[%clk 0:00:18]} 44. Kd3 {[%clk 0:00:32]}  Ra3+ {[%clk 0:00:17]} 45. Ke4 {[%clk 0:00:30]}  Ra1 {[%clk 0:00:18]} 46. Ke3 {[%clk 0:00:27]}  a4 {[%clk 0:00:18]} 47. Ra7 {[%clk 0:00:25]}  a3 {[%clk 0:00:18]} 48. Kf2 {[%clk 0:00:25]}  a2 {[%clk 0:00:18]} 49. Kg2 {[%clk 0:00:24]}  f5 {[%clk 0:00:15]} 50. Ra6+ {[%clk 0:00:23]}  Kf7 {[%clk 0:00:15]} 51. gxf5 {[%clk 0:00:23]}  g4 {[%clk 0:00:16]} 52. fxg4 {[%clk 0:00:20]}  e4 {[%clk 0:00:16]} 53. g5 {[%clk 0:00:21]}  e3 {[%clk 0:00:17]} 54. Ra7+ {[%clk 0:00:21]}  Ke8 {[%clk 0:00:12]} 55. g6 {[%clk 0:00:20]}  e2 {[%clk 0:00:12]} 56. g7 {[%clk 0:00:20]}  Rg1+ {[%clk 0:00:12]} 57. Kxg1 {[%clk 0:00:20]}  e1=Q+ {[%clk 0:00:13]} 58. Kg2 {[%clk 0:00:19]}  Qe2+ {[%clk 0:00:12]} 59. Kg3 {[%clk 0:00:18]}  Qe3+ {[%clk 0:00:13]} 60. Kg4 {[%clk 0:00:18]}  Qg1+ {[%clk 0:00:13]} 61. Kf4 {[%clk 0:00:17]}  Qxg7 {[%clk 0:00:13]} 62. Rxg7 {[%clk 0:00:10]}  a1=Q {[%clk 0:00:13]} 63. Rg6 {[%clk 0:00:11]}  Kf7 {[%clk 0:00:13]} 64. Re6 {[%clk 0:00:11]}  Qf1+ {[%clk 0:00:13]} 65. Kg4 {[%clk 0:00:11]}  Qf2 {[%clk 0:00:14]} 66. Rg6 {[%clk 0:00:10]}  Qe3 {[%clk 0:00:13]} 67. Re6 {[%clk 0:00:11]}  Qd4+ {[%clk 0:00:12]} 68. Kg5 {[%clk 0:00:11]}  Qd3 {[%clk 0:00:08]} 69. Kf4 {[%clk 0:00:11]}  Qh3 {[%clk 0:00:07]} 70. Rg6 {[%clk 0:00:11]}  Qh4+ {[%clk 0:00:07]} 71. Ke5 {[%clk 0:00:09]}  Ke7 {[%clk 0:00:08]} 72. Re6+ {[%clk 0:00:08]}  Kd7 {[%clk 0:00:08]} 73. Rg6 {[%clk 0:00:08]}  Qe1+ {[%clk 0:00:05]} 74. Kf4 {[%clk 0:00:09]}  Qf2+ {[%clk 0:00:03]} 75. Ke4 {[%clk 0:00:05]}  Qc2+ {[%clk 0:00:02]} 76. Kf4 {[%clk 0:00:05]}  Qc4+ {[%clk 0:00:00]} 77. Kg5 {[%clk 0:00:04]} 1-0


[Site "https://www.chess.com"]